Cogmind - Beta 16 *** ADVENTURER MODE // 2025.11.17 @ 01:08:06 Player: oshi0ne1 Result: Destroyed by L-41 Fighter with Axe Performance ------------- Evolutions (3) 1500 Regions Visited (10) 2000 Robots Destroyed (126) 630 Value Destroyed (4331) 4331 Prototype IDs (0) 0 Alien Tech Used (0) 0 Bonus (1722) 1722 TOTAL SCORE: 10183 Bonus ------- High Alert Combat Kills 536 Follower Combat Kills 215 Entered Garrisons 200 Used RIF Installer 500 Aligned with FarCom 300 Friendly Fire -29 Cogmind --------- Core Integrity 0/700 Matter 300/300 Energy 290/290 System Corruption 1% Temperature Danger (402) Movement Walking (113) Location -7/Lower Caves Parts ------- > --- POWER (1) -------- Improved Deuterium Engine > --- PROPULSION (4) --- Carbon-fiber Leg VSS Leg Improved Titanium Leg > --- UTILITY (6) ------ Large Storage Unit Improved Terrain Scanner Advanced Targeting Computer Target Analyzer Relay Coupler [NC] (1) Relay Coupler [Specialist] (29) > --- WEAPON (2) ------- Plasma Cannon > --- INVENTORY (15) --- Nuclear Core Light Nuclear Core Advanced Visual Processing Unit Advanced ECM Suite EM Disruption Field Hardlight Generator Heart of Steel Plasma Cannon Gauss Rifle Advanced Assault Cannon Advanced Assault Cannon Remote Datajack Makeshift Spear Peak State ------------ > --- POWER ------------ Improved Deuterium Engine > --- PROPULSION ------- Improved Titanium Leg Improved Titanium Leg Improved Titanium Leg Improved Titanium Leg > --- UTILITY ---------- Large Storage Unit Improved Terrain Scanner Advanced Targeting Computer Advanced ECM Suite Relay Coupler [NC] Relay Coupler [Specialist] > --- WEAPON ----------- Plasma Cannon Plasma Cannon > --- INVENTORY -------- Nuclear Core Light Nuclear Core Improved Deuterium Engine Armored Treads Aluminum Leg Aluminum Leg Aluminum Leg Carbon-fiber Leg Energy Filter Hardlight Generator Plasma Cannon Gauss Rifle Remote Datajack Makeshift Spear [Rating: 49] Favorites ----------- Power Light Nuclear Core Engine Improved Deuterium Engine Power Core Light Nuclear Core Propulsion Aluminum Leg Treads Armored Treads Leg Aluminum Leg Wheel Compact Wheel Flight Unit Surge Thruster Utility Large Storage Unit Device Seismic Detector Storage Large Storage Unit Processor Advanced Visual Processing Unit Hackware Relay Coupler [Specialist] Weapon Plasma Cannon Energy Gun Medium Laser Energy Cannon Plasma Cannon Ballistic Gun Gauss Rifle Launcher Shock Bomb Launcher Special Weapon Remote Datajack Piercing Weapon Makeshift Spear Build | -11 -10 -10 -10 -9 -8 -8 -8 -7 -7 -7 ------- Run | Yrd Mat Min Exi Min Mat Gar Mat Fac Low Low Slots Evolved 6 | . . . . . 4 . . 2 . . Power . | . . . . . . . . . . . Propulsion 2 | . . . . . 2 . . . . . Utility 4 | . . . . . 2 . . 2 . . Weapon . | . . . . . . . . . . . Parts Attached 90 | 8 2 5 . 3 8 26 13 24 1 . Power 15 | 1 . 3 . . 2 2 2 4 1 . Engine 5 | 1 . 2 . . . . . 1 1 . Core 10 | . . 1 . . 2 2 2 3 . . Reactor . | . . . . . . . . . . . Propulsion 36 | 4 . 1 . 2 2 11 8 8 . . Treads 4 | . . . . . . . 4 . . . Leg 27 | 2 . 1 . 2 2 8 4 8 . . Wheel 2 | 2 . . . . . . . . . . Hover . | . . . . . . . . . . . Flight 3 | . . . . . . 3 . . . . Utility 18 | 1 1 . . 1 3 4 1 7 . . Device 5 | . 1 . . . . . . 4 . . Storage 4 | 1 . . . 1 1 1 . . . . Processor 5 | . . . . . 2 1 . 2 . . Hackware 4 | . . . . . . 2 1 1 . . Protection . | . . . . . . . . . . . Artifact . | . . . . . . . . . . . Weapon 21 | 2 1 1 . . 1 9 2 5 . . Energy Gun 7 | 2 1 . . . . 2 1 1 . . Energy Cannon 5 | . . . . . 1 . 1 3 . . Ballistic Gun 4 | . . . . . . 4 . . . . Ballistic Cannon . | . . . . . . . . . . . Launcher 2 | . . 1 . . . 1 . . . . Special Weapon 2 | . . . . . . 1 . 1 . . Impact Weapon . | . . . . . . . . . . . Slashing Weapon . | . . . . . . . . . . . Piercing Weapon 1 | . . . . . . 1 . . . . Special Melee Weapon . | . . . . . . . . . . . Unidentified Prototypes . | . . . . . . . . . . . Corrupted Parts 3 | . . . . . . 2 1 . . . System Corruption 9 | . . . . . . 8 1 . . . Parts Lost 36 | . . 4 . . 1 10 9 11 . 1 Power 7 | . . 2 . . . 1 2 2 . . Propulsion 15 | . . 1 . . . 6 5 3 . . Utility 2 | . . . . . 1 . . 1 . . Weapon 12 | . . 1 . . . 3 2 5 . 1 Highest Loss Streak 7 | . . 2 . . 1 3 5 7 . 1 To Critical Strikes 1 | . . . . . . 1 . . . . Average Backups 11 | 1 5 7 6 9 13 14 7 12 13 13 Power 2 | . 1 . 1 1 3 3 1 2 2 2 Propulsion 3 | 1 3 4 4 4 3 2 1 3 . . Utility 2 | . . . . 1 1 3 1 2 4 4 Weapon 2 | . . 1 1 1 3 3 2 3 5 5 Tool/Special . | . . . . . . . . . . . Unused Backups 19 | . . . . . . 7 1 2 1 8 Power 2 | . . . . . . 1 . . . 1 Propulsion 6 | . . . . . . 4 1 1 . . Utility 4 | . . . . . . 1 . . 1 2 Weapon 5 | . . . . . . . . 1 . 4 Tool/Special 2 | . . . . . . 1 . . . 1 Average Slot Usage (%) 96 | . 98 92 100 100 92 96 93 96 100 100 Engine 2 | . 14 9 . . . . . 5 7 7 Core 6 | . . 4 14 14 9 7 8 1 . . Treads 2 | . . . . . . . 11 7 . . Leg 26 | . 28 28 28 28 33 27 9 22 30 30 Flight 2 | . . . . . . 4 10 . . . Device 6 | . 12 14 14 14 . . . 8 7 7 Storage 14 | . 14 14 14 14 21 19 9 6 7 7 Processor 8 | . . . . . 8 13 9 8 15 15 Hackware 6 | . . . . . . 2 17 16 15 15 Energy Gun 9 | . 28 20 28 28 14 1 4 1 . . Energy Cannon 3 | . . . . . 3 . 2 10 15 15 Ballistic Gun 3 | . . . . . . 10 4 . . . Peak Build Rating 49 | 6 7 9 9 13 22 30 34 49 48 48 Average Rating 25 | 3 6 7 9 11 19 25 28 42 47 47 On Entrance 19 | . 6 7 9 9 13 22 27 30 47 48 Avg Prop Armor Cover (%) 9 | . . . . . . 10 6 6 . . Naked Turns . | . . . . . . . . . . . Heaviest Build 57 | 11 13 15 14 29 57 57 33 48 45 45 Greatest Support 80 | 26 20 20 20 30 50 50 80 80 67 67 Greatest Overweight (x) 7 | . . . . 1 1 7 3 1 . . Average Overweight (x) . | . . . . . . 1 1 . . . Largest Inventory Capacity 15 | 8 8 8 8 15 15 15 15 15 15 15 Average Capacity 13 | 6 8 8 8 14 15 15 15 14 15 15 Most Carried 15 | 4 7 8 6 12 15 15 10 15 15 15 Average Carried 11 | 2 5 7 6 9 13 14 7 12 14 15 Final Capacity 15 | 8 8 8 8 15 15 15 15 15 15 15 Final Carried 15 | 3 7 6 6 12 15 10 10 15 15 15 Class Distribution -------------------- 44% | Mutant 35% | Scavenger-Mutant 11% | Skirmisher 7% | Hacker-Mutant Dominant Class ---------------- Mutant | -10/Materials Mutant | -10/Mines Mutant | -10/Exiles Mutant | -9/Mines Scavenger-Mutant | -8/Materials Scavenger-Mutant | -8/Garrison Scavenger-Mutant | -8/Materials Skirmisher | -7/Factory Mutant | -7/Lower Caves Mutant | -7/Lower Caves Resources | -11 -10 -10 -10 -9 -8 -8 -8 -7 -7 -7 ----------- Run | Yrd Mat Min Exi Min Mat Gar Mat Fac Low Low Matter Collected 2573 | 268 32 65 . 30 85 898 530 492 173 . Remotely . | . . . . . . . . . . . Salvage Created 4348 | . 129 268 . 181 744 1276 745 813 86 106 Parts 269 | . 9 24 . 10 39 90 48 37 7 5 Haulers Intercepted . | . . . . . . . . . . . Recyclers Shooed 4 | . 1 . . . 2 . . 1 . . Parts Field Recycled . | . . . . . . . . . . . Retrieved Matter . | . . . . . . . . . . . Parts Self-Destructed 15 | . . . . . . . . . 14 1 Prevented 1 | . . . . . . . . . 1 . Parts Restored . | . . . . . . . . . . . Kills | -11 -10 -10 -10 -9 -8 -8 -8 -7 -7 -7 ------- Run | Yrd Mat Min Exi Min Mat Gar Mat Fac Low Low Combat Hostiles Destroyed 114 | . 6 14 . 6 16 32 20 16 2 2 Melee 3 | . . . . . . 1 . 2 . . Guns 76 | . 6 13 . 6 10 25 11 5 . . Cannons 22 | . . . . . 6 . 3 9 2 2 AOE 12 | . . . . . . 6 6 . . . Classes Destroyed 13 | . 2 1 . 1 3 3 1 2 . . Worker 2 | . . . . . . . . 2 . . Recycler 1 | . . . . . . . . 1 . . Mechanic 1 | . . . . . . . 1 . . . Operator 2 | . . . . . 1 . 1 . . . Watcher 6 | . 2 . . . 3 . 1 . . . Swarmer 46 | . 6 12 . 3 5 9 7 4 . . Cutter 3 | . . . . . . 3 . . . . Grunt 38 | . . 2 . 2 9 10 10 4 . 1 Brawler 1 | . . . . 1 . . . . . . Duelist 7 | . . . . . 1 . 1 4 . 1 Sentry 10 | . . . . . 1 7 1 1 . . Hunter 4 | . . . . . . 2 1 1 . . Programmer 5 | . . . . . . 1 . 2 2 . Best Kill Streak 7 | . 4 5 . 3 6 3 7 6 1 2 Combat Bots Only 6 | . 3 5 . 3 6 3 6 5 1 2 Max Kills in Single Turn 4 | . 1 1 . 1 1 2 4 2 1 1 Gunslinging 1 | . . . . . . 1 1 . . . Exploded 3 | . . . . . . 2 3 . . . Melee 1 | . . . . . . 1 . 1 . . Uniques/NPCs Destroyed . | . . . . . . . . . . . Combat | -11 -10 -10 -10 -9 -8 -8 -8 -7 -7 -7 -------- Run | Yrd Mat Min Exi Min Mat Gar Mat Fac Low Low Hostile Shots Fired 791 | . 38 84 . 16 59 176 130 234 30 24 Missed 221 | . 12 17 . 7 14 45 37 80 7 2 Hits 570 | . 26 67 . 9 45 131 93 154 23 22 Melee 36 | . . . . . . 9 3 20 . 4 Projectile 534 | . 26 67 . 9 45 122 90 134 23 18 Critical Strikes 33 | . . 2 . 1 3 14 3 8 1 1 Damage Taken 6531 | . 158 482 . 79 493 1405 1189 2198 193 334 Core 1421 | . 51 96 . 15 88 270 188 624 54 35 Absorbed by Shields 58 | . . . . . . 58 . . . . Ignored by Resistances 1841 | . 52 152 . 26 148 431 340 540 58 94 Regen/Repaired (Parts) 281 | . . . . . . . . 281 . . Core Remaining (%) 45 | 100 . . . 35 . . . . . . Volleys Fired 346 | . 15 41 . 11 53 88 67 60 6 5 Largest 2 | . 2 2 . 2 2 2 2 2 2 2 Hottest 160 | . 100 100 . 90 103 93 85 160 160 160 Shots Fired 599 | . 30 57 . 22 102 152 106 109 12 9 Gun 441 | . 30 57 . 22 82 127 67 56 . . Cannon 104 | . . . . . 20 . 19 44 12 9 Launcher 22 | . . . . . . 15 7 . . . Special 32 | . . . . . . 10 13 9 . . Kinetic 168 | . . . . . . 112 38 18 . . Thermal 319 | . 30 57 . 22 82 10 16 81 12 9 Explosive 7 | . . . . . . . 7 . . . Electromagnetic 73 | . . . . . 20 20 32 1 . . Robot Hit Streak 27 | . 4 10 . 6 15 20 25 27 10 8 Robot Miss Streak 4 | . 1 4 . 2 3 2 2 3 2 1 Penetration Max . | . . . . . . . . . . . Secondary Targets 9 | . 1 1 . . . 4 3 . . . Max Gunslinging Chain 1 | . 1 1 . . . 1 1 . . . Shots Hit Robots 450 | . 19 37 . 14 73 100 85 105 9 8 Core Hits 216 | . 8 16 . 8 40 52 49 37 2 4 Critical Kills 3 | . . . . . . 3 . . . . Critical Parts Destroyed 1 | . . . . . . 1 . . . . Critical Strikes 22 | . 3 6 . 1 4 5 . 3 . . Burn 16 | . 3 6 . 1 4 1 . 1 . . Destroy 4 | . . . . . . 4 . . . . Impale 2 | . . . . . . . . 2 . . Melee Attacks 36 | . . . . . . 9 12 15 . . Impact . | . . . . . . . . . . . Slashing . | . . . . . . . . . . . Piercing 36 | . . . . . . 9 12 15 . . Sneak Attacks . | . . . . . . . . . . . Combat Hostiles . | . . . . . . . . . . . Follow-up Attacks . | . . . . . . . . . . . Damage Inflicted 8373 | . 262 482 . 162 1192 2072 1837 1901 257 208 Guns 4539 | . 262 482 . 162 703 1656 653 621 . . Cannons 2288 | . . . . . 437 . 408 978 257 208 Explosions 1216 | . . . . . 52 388 776 . . . Melee 330 | . . . . . . 28 . 302 . . Ramming . | . . . . . . . . . . . Kinetic 1867 | . . . . . . 1484 274 109 . . Thermal 3992 | . 262 482 . 162 755 96 306 1464 257 208 Explosive 668 | . . . . . . . 668 . . . Electromagnetic 1516 | . . . . . 437 464 589 26 . . Impact . | . . . . . . . . . . . Slashing . | . . . . . . . . . . . Piercing 330 | . . . . . . 28 . 302 . . Highest Corruption 11 | . . . . . . 10 11 1 1 1 Average Corruption 6 | . . . . . . 9 10 1 1 1 Corruption Purged . | . . . . . . . . . . . Corruption Blocked . | . . . . . . . . . . . Effects 136 | . . . . . . 88 34 8 5 1 Message Errors 30 | . . . . . . 19 10 1 . . Matter Fused 41 | . . . . . . 27 9 1 4 . Heat Flow Errors 17 | . . . . . . 11 2 4 . . Energy Discharges 18 | . . . . . . 8 8 1 1 . Parts Rejected 1 | . . . . . . 1 . . . . Parts Fused 2 | . . . . . . 2 . . . . Data Loss (minor) 13 | . . . . . . 10 2 1 . . Data Loss (major) 3 | . . . . . . 3 . . . . Misfires 6 | . . . . . . 4 2 . . . Alerts 2 | . . . . . . 1 1 . . . Misdirections 1 | . . . . . . 1 . . . . Weapon Failures 2 | . . . . . . 1 . . . 1 Overload Shots . | . . . . . . . . . . . Overflow Damage 126 | . . . . . 17 4 52 53 . . Projectiles 8 | . . . . . . . 2 6 . . Explosions 71 | . . . . . 17 4 50 . . . Melee 47 | . . . . . . . . 47 . . Knockbacks . | . . . . . . . . . . . Impact . | . . . . . . . . . . . Kinetic . | . . . . . . . . . . . Secondary . | . . . . . . . . . . . Self-Inflicted Damage 333 | . . . . . . 69 264 . . . Shots 13 | . . . . . . 6 7 . . . Rammed . | . . . . . . . . . . . Targets Rammed . | . . . . . . . . . . . Kicked . | . . . . . . . . . . . Crushed . | . . . . . . . . . . . Highest Temperature 685 | . 195 273 . 127 316 220 277 685 231 411 Average Temperature 96 | . 77 86 . 52 106 59 68 143 110 235 Received Heat Transfer 2013 | . . 111 . 42 378 630 351 348 . 153 Effects 20 | . . . . . 1 . . 16 . 3 Shutdowns 2 | . . . . . . . . 2 . . Energy Bleed 3 | . . . . . 1 . . 2 . . Interference 7 | . . . . . . . . 4 . 3 Matter Decay 1 | . . . . . . . . 1 . . Short Circuit 1 | . . . . . . . . 1 . . Damage (minor) 3 | . . . . . . . . 3 . . Damage (core) 3 | . . . . . . . . 3 . . Siege Activations . | . . . . . . . . . . . Martial Activations . | . . . . . . . . . . . Shielding Activations . | . . . . . . . . . . . Robots Disrupted . | . . . . . . . . . . . Combat Hostiles . | . . . . . . . . . . . Robots Corrupted . | . . . . . . . . . . . Combat Hostiles . | . . . . . . . . . . . Parts Fried 7 | . . . . . 1 2 4 . . . Impact Corruptions . | . . . . . . . . . . . Robots Melted 1 | . . 1 . . . . . . . . Combat Hostiles 1 | . . 1 . . . . . . . . Parts Melted 31 | . 3 7 . 1 1 . . 15 4 . Heat Transferred 10288 | . 999 1839 . 520 2182 309 494 3095 450 400 Parts Sabotaged . | . . . . . . . . . . . Parts Stolen . | . . . . . . . . . . . Parts Stripped . | . . . . . . . . . . . Power Chain Reactions 3 | . . . . . 1 . 2 . . . Alert | -11 -10 -10 -10 -9 -8 -8 -8 -7 -7 -7 ------- Run | Yrd Mat Min Exi Min Mat Gar Mat Fac Low Low Maximum Alert Level 5 | . . . . . . 5 3 1 . . Low Security (%) 57 | 100 100 100 . 100 100 11 . 72 . . Level 1 7 | . . . . . . 7 . 27 . . Level 2 9 | . . . . . . 19 33 . . . Level 3 17 | . . . . . . 33 66 . . . Level 4 6 | . . . . . . 19 . . . . Level 5 2 | . . . . . . 7 . . . . High Security . | . . . . . . . . . . . Max Security . | . . . . . . . . . . . Peak Influence 1776 | . 67 115 . 102 110 1776 792 322 . . Initial 745 | . . 16 . . 13 20 745 271 . . Average 353 | . 19 36 . 11 32 815 712 98 . . Influence Increases 4247 | . 166 345 . 213 514 1856 541 458 114 40 Destroy 0b10 Robot/C 2440 | . 120 280 . 180 360 640 400 320 100 40 Destroy 0b10 Robot/NC 60 | . 10 . . . 20 . 15 15 . . Destroy Leader 350 | . 24 50 . 30 76 30 70 60 10 . Allied During Kill 9 | . . . . 3 2 . . . 4 . Successful Hack 56 | . 12 . . . 6 22 . 16 . . Disable Machine 27 | . . . . . . 9 18 . . . Anti-Garrison Action 1000 | . . . . . . 1000 . . . . Destroy Structure 125 | . . . . . 5 80 38 2 . . Partial Spotted 15 | . . . . . 15 . . . . . Lose Combat Pursuer 165 | . . 15 . . 30 75 . 45 . . Influence Decreases 4227 | . 116 395 . 172 518 117 1621 1154 114 20 Entered New Map 1535 | . . 34 . . 28 17 1031 425 . . Time Decay 2332 | . 116 341 . 172 460 . 500 619 114 10 Lost Part 340 | . . 20 . . 10 100 90 110 . 10 Lost Ally 20 | . . . . . 20 . . . . . Squads Dispatched 11 | . . . . . 2 . 4 4 . 1 Investigation . | . . . . . . . . . . . Extermination 4 | . . . . . . . . 4 . . Reinforcement 3 | . . . . . 2 . 1 . . . Assault 2 | . . . . . . . 1 . . 1 Garrison 2 | . . . . . . . 2 . . . Intercept . | . . . . . . . . . . . Searches Triggered . | . . . . . . . . . . . Construction Impeded 2 | . . . . . 1 . 1 . . . Haulers Reinforced . | . . . . . . . . . . . Active Scanning Responses . | . . . . . . . . . . . Cargo Convoy Interrupts . | . . . . . . . . . . . Stealth | -11 -10 -10 -10 -9 -8 -8 -8 -7 -7 -7 --------- Run | Yrd Mat Min Exi Min Mat Gar Mat Fac Low Low Distress Signals 9 | . 1 . . . 8 . . . . . Communications Jammed . | . . . . . . . . . . . Distress Signals . | . . . . . . . . . . . Times Spotted 156 | . 10 15 . 9 23 36 31 22 3 7 Peak Tracking Total 7 | . 6 6 . 3 3 4 4 5 3 7 Tactical Retreats 7 | . . 1 . . 1 3 . 2 . . Traps | -11 -10 -10 -10 -9 -8 -8 -8 -7 -7 -7 ------- Run | Yrd Mat Min Exi Min Mat Gar Mat Fac Low Low Traps Triggered 13 | . . . . . 2 10 . 1 . . Indirectly . | . . . . . . . . . . . Trap Hack Attempts . | . . . . . . . . . . . Triggered . | . . . . . . . . . . . Disarmed . | . . . . . . . . . . . Reprogrammed . | . . . . . . . . . . . Reused . | . . . . . . . . . . . Traps Extracted . | . . . . . . . . . . . Installed . | . . . . . . . . . . . Triggered . | . . . . . . . . . . . Machines | -11 -10 -10 -10 -9 -8 -8 -8 -7 -7 -7 ---------- Run | Yrd Mat Min Exi Min Mat Gar Mat Fac Low Low Machines Disabled 5 | . . . . . . 3 2 . . . Max in Single Turn 2 | . . . . . . 2 1 . . . Garrison Relay 2 | . . . . . . 2 . . . . Machines Repaired . | . . . . . . . . . . . Machines Dismantled . | . . . . . . . . . . . Machines Sabotaged . | . . . . . . . . . . . Overloaded Fab Kills . | . . . . . . . . . . . Hacking | -11 -10 -10 -10 -9 -8 -8 -8 -7 -7 -7 --------- Run | Yrd Mat Min Exi Min Mat Gar Mat Fac Low Low Machines Accessed 21 | . 6 . . . 3 2 3 3 4 . Terminals 13 | . 6 . . . 1 2 3 1 . . Fabricators . | . . . . . . . . . . . Repair Stations 1 | . . . . . . . . 1 . . Recycling Units . | . . . . . . . . . . . Scanalyzers 2 | . . . . . 1 . . 1 . . Garrison Access 1 | . . . . . 1 . . . . . Total Hacks 43 | . 8 . . . 7 3 5 10 10 . Successful 35 | . 7 . . . 7 2 1 8 10 . Failed 8 | . 1 . . . . 1 4 2 . . Catastrophic . | . . . . . . . . . . . Database Lockouts . | . . . . . . . . . . . Manual 3 | . . . 3 . . . . . . . Terminals 21 | . 8 . . . 2 3 5 3 . . Fabricators . | . . . . . . . . . . . Repair Stations 3 | . . . . . . . . 3 . . Recycling Units . | . . . . . . . . . . . Scanalyzers 8 | . . . . . 4 . . 4 . . Garrison Access 1 | . . . . . 1 . . . . . Terminal Hacks 24 | . 7 . . . 2 2 1 2 10 . Record 8 | . 1 . . . . . . . 7 . Open Door 3 | . . . . . . . . . 3 . Branch Access Points 2 | . 1 . . . 1 . . . . . Emergency Access Points 3 | . 1 . . . . 1 1 . . . Alert Level 3 | . 1 . . . 1 . . 1 . . Recall Reinforcements 1 | . . . . . . . . 1 . . Zone Layout 3 | . 3 . . . . . . . . . Security Stations 1 | . . . . . . 1 . . . . Fabricator Hacks . | . . . . . . . . . . . Repair Station Hacks 2 | . . . . . . . . 2 . . Scan Component 1 | . . . . . . . . 1 . . Repair 1 | . . . . . . . . 1 . . Recycling Unit Hacks . | . . . . . . . . . . . Scanalyzer 8 | . . . . . 4 . . 4 . . Insert Component 3 | . . . . . 2 . . 1 . . Analyze 2 | . . . . . 1 . . 1 . . Retrieve Study 3 | . . . . . 1 . . 2 . . Garrison Access Hacks 1 | . . . . . 1 . . . . . Unlock Access 1 | . . . . . 1 . . . . . Unauthorized Hacks . | . . . . . . . . . . . Terminals . | . . . . . . . . . . . Fabricators . | . . . . . . . . . . . Repair Stations . | . . . . . . . . . . . Recycling Units . | . . . . . . . . . . . Scanalyzers . | . . . . . . . . . . . Garrison Access . | . . . . . . . . . . . Data Cores Recovered 1 | . . . . . . . 1 . . . Used . | . . . . . . . . . . . Hacking Detections 9 | . 2 . . . 2 1 1 3 . . Full Trace Events 1 | . . . . . . . 1 . . . Feedback Events . | . . . . . . . . . . . Feedback Blocked . | . . . . . . . . . . . Robot Schematics Acquired . | . . . . . . . . . . . Robots Built . | . . . . . . . . . . . Authchips . | . . . . . . . . . . . Time . | . . . . . . . . . . . Total Robot Build Rating . | . . . . . . . . . . . Part Schematics Acquired 2 | . . . . . 1 . . 1 . . Parts Built . | . . . . . . . . . . . Authchips . | . . . . . . . . . . . Time . | . . . . . . . . . . . Total Part Build Rating . | . . . . . . . . . . . Part Studies Acquired 3 | . . . . . 1 . . 2 . . Parts Repaired 1 | . . . . . . . . 1 . . Time 13 | . . . . . . . . 13 . . Parts Recycled . | . . . . . . . . . . . Recycled Matter . | . . . . . . . . . . . Retrieved Matter . | . . . . . . . . . . . Retrieved Components . | . . . . . . . . . . . Parts Scanalyzed 2 | . . . . . 1 . . 1 . . Part Schematics Acquired 2 | . . . . . 1 . . 1 . . Parts Damaged . | . . . . . . . . . . . Bothacking | -11 -10 -10 -10 -9 -8 -8 -8 -7 -7 -7 ------------ Run | Yrd Mat Min Exi Min Mat Gar Mat Fac Low Low Used RIF Installer 1 | . . . . . . 1 . . . . Robots Hacked 9 | . . . . . . . 4 5 . . Non-combat 7 | . . . . . . . 2 5 . . Combat 2 | . . . . . . . 2 . . . Robot Hacks Applied 13 | . . . . . . . 8 5 . . parse_system 3 | . . . . . . . 3 . . . generate_anomaly 1 | . . . . . . . . 1 . . generate_echo 1 | . . . . . . . . 1 . . map_route 1 | . . . . . . . 1 . . . mark_security 1 | . . . . . . . 1 . . . link_fov 1 | . . . . . . . . 1 . . overload_power 2 | . . . . . . . 2 . . . streamctrl_high 2 | . . . . . . . 1 1 . . formatsys_high 1 | . . . . . . . . 1 . . Relay Couplers Released 6 | . . . . . . 6 . . . . Machine Destruction 6 | . . . . . . 6 . . . . Attached 3 | . . . . . . 1 1 1 . . Fabnet Peak Effective % . | . . . . . . . . . . . Robots Rewired . | . . . . . . . . . . . Allies Hacked . | . . . . . . . . . . . Hacks Repelled . | . . . . . . . . . . . Allies | -11 -10 -10 -10 -9 -8 -8 -8 -7 -7 -7 -------- Run | Yrd Mat Min Exi Min Mat Gar Mat Fac Low Low Total Allies 8 | . . . . 2 . . 1 2 3 . Largest Group 3 | . . . . 2 1 . . 1 3 . Highest-Rated Group 60 | . . . . 52 31 . . 13 60 . Highest-Rated Ally 31 | . . . . 31 31 . . 13 20 . Total Orders . | . . . . . . . . . . . Ally Attacks 33 | . . . . 16 9 . . . 8 . Total Damage 583 | . . . . 165 106 . . . 312 . Kills 8 | . . . . 3 2 . . . 3 . Allies Corrupted . | . . . . . . . . . . . Allies Melted . | . . . . . . . . . . . Intel | -11 -10 -10 -10 -9 -8 -8 -8 -7 -7 -7 ------- Run | Yrd Mat Min Exi Min Mat Gar Mat Fac Low Low Active Infowar (turns) 9040 | . 385 952 376 1425 1052 2956 . 1205 628 61 Optics 4007 | . . . . . 1051 2956 . . . . Terrain 1894 | . . . . . . . . 1205 628 61 Seismic 3235 | . 385 952 376 1425 97 . . . . . ECM 31 | . . . . . . . . 31 . . Robot Analysis Total . | . . . . . . . . . . . Derelict Logs Recovered 5 | . . 1 . 2 . . . . 2 . Drone Launches . | . . . . . . . . . . . Drone Recoveries . | . . . . . . . . . . . Exploration | -11 -10 -10 -10 -9 -8 -8 -8 -7 -7 -7 ------------- Run | Yrd Mat Min Exi Min Mat Gar Mat Fac Low Low Turns Passed 11243 | 72 417 952 376 1425 1052 3091 1008 1956 831 63 Spaces Moved 5994 | 51 301 688 314 780 488 1724 346 617 646 39 Core 1 | 1 . . . . . . . . . . Treads 267 | . . . . . . . 107 160 . . Legs 4935 | 40 301 688 314 780 488 1051 131 457 646 39 Wheels 265 | 10 . . . . . 255 . . . . Hover . | . . . . . . . . . . . Flight 526 | . . . . . . 418 108 . . . Fastest Speed 50 | 50 120 120 120 120 113 108 112 108 117 117 Average Speed 137 | 113 120 120 120 149 139 148 163 137 117 117 Slowest Speed 455 | 120 120 120 120 190 183 455 315 210 117 117 Overloaded Moves . | . . . . . . . . . . . Propulsion Burnouts . | . . . . . . . . . . . Robots Hopped . | . . . . . . . . . . . Potential Cave-ins . | . . . . . . . . . . . Cave-ins Triggered . | . . . . . . . . . . . Exploration Rate (%) 49 | 4 41 99 62 97 30 88 33 16 69 5 Regions Visited 10 Branch Regions 5 Pre-discovered Areas 3 | . . . . . . . . . 3 . Known Exits Taken 3 | . 1 . . . 1 . 1 . . . Unknown Exits Taken 6 | 1 . 1 1 1 . . . 1 1 . Scrap Searched 4 | . . 1 . 2 . . . . 1 . Spaces Dug 10 | . . . . . . . 10 . . . Terrain Destroyed 43 | . . . . . 3 2 38 . . . Melee 10 | . . . . . . . 10 . . . Projectile 2 | . . . . . . 2 . . . . AOE 31 | . . . . . 3 . 28 . . . Terrain Rammed . | . . . . . . . . . . . Walls Destroyed . | . . . . . . . . . . . Machines Disabled . | . . . . . . . . . . . Actions | -11 -10 -10 -10 -9 -8 -8 -8 -7 -7 -7 --------- Run | Yrd Mat Min Exi Min Mat Gar Mat Fac Low Low Total 8372 | 63 326 756 313 1018 754 2111 678 1597 710 46 Wait 1692 | . 5 17 . 217 197 176 213 811 54 2 Move 5983 | 50 300 687 313 779 487 1722 345 616 645 39 Hop . | . . . . . . . . . . . Pick Up 80 | 3 4 3 . 6 6 15 10 32 1 . Fast Attach 35 | 6 1 1 . . 2 11 7 7 . . Attach 40 | 2 . 3 . . 4 10 8 12 1 . Detach 8 | 2 . . . . 1 1 . 4 . . Swap 63 | . 1 3 . 3 3 16 10 27 . . Drop 49 | . . 1 . 2 1 23 6 13 3 . Fire 346 | . 15 41 . 11 53 88 67 60 6 5 Melee 36 | . . . . . . 9 12 15 . . Ram . | . . . . . . . . . . . Kick . | . . . . . . . . . . . Crush . | . . . . . . . . . . . Escape Stasis 40 | . . . . . . 40 . . . . Rewire . | . . . . . . . . . . . Trap . | . . . . . . . . . . . Miscellaneous . | . . . . . . . . . . . Route ------- -11/Scrapyard -10/Materials (discovered 3 exits: [*Mat x2] / *Min) -10/Mines (discovered 4 exits: [*Mat x2] / *Exi / [*Sub]) -10/Exiles -9/Mines -8/Materials (discovered 2 exits: Fac / Gar) -8/Garrison (discovered 3 exits: *Mat x3) -8/Materials -7/Factory -7/Lower Caves -7/Lower Caves History --------- Turn | Location | Event 10 | -11/Scrapyard | Discovered new exit (range 15) 73 | -11/Scrapyard | Entered Materials 156 | -10/Materials | Discovered new exit (range 17) 316 | -10/Materials | Build established: Mutant 326 | -10/Materials | Discovered new exit (range 8) 336 | -10/Materials | Identified exit to Mines 490 | -10/Materials | Entered Mines 552 | -10/Mines | Received a Rocket Launcher from a helpful Derelict 609 | -10/Mines | Learned Materials garrison access intel 1127 | -10/Mines | Core integrity fell below 50% 1163 | -10/Mines | Discovered new exit (range 11) 1290 | -10/Mines | Discovered new exit (range 5) 1354 | -10/Mines | Deemed a non-threat by the Exiles lab entrance 1354 | -10/Mines | Discovered new exit (range 5) 1393 | -10/Mines | Discovered new exit (range 6) 1442 | -10/Mines | Entered Exiles 1468 | -10/Exiles | Discovered new exit (range 14) 1492 | -10/Exiles | Met 8R-AWN 1508 | -10/Exiles | Met EX-HEX 1554 | -10/Exiles | Met EX-DEC 1608 | -10/Exiles | Met EX-BIN 1625 | -10/Exiles | Aligned with FarCom system 1626 | -10/Exiles | Given EX-Vault access code 1818 | -10/Exiles | Entered Mines 1865 | -9/Mines | Learned 2 Materials zone layouts 2061 | -9/Mines | Learned location of 1 exit from Proximity Caves 3221 | -9/Mines | Discovered new exit (range 6) 3243 | -9/Mines | Entered Materials 3243 | -8/Materials | Accompanied by 1 ally 3243 | -8/Materials | Evolved 4 slots: Propulsion x2, Utility x2 3244 | -8/Materials | Identified exit to Factory 3245 | -8/Materials | Loaded intel: 1 garrison access location 3248 | -8/Materials | Led the pair of lost Derelicts to an unsafe place 3804 | -8/Materials | Build established: Scavenger-Mutant 4289 | -8/Materials | Identified exit to Garrison 4295 | -8/Materials | Entered Garrison 4497 | -8/Garrison | Triggered checkpoint 4639 | -8/Garrison | Triggered checkpoint 4639 | -8/Garrison | Triggered checkpoint 4667 | -8/Garrison | System corruption reached 10% 4741 | -8/Garrison | Discovered new exit (range 17) 4755 | -8/Garrison | Triggered checkpoint 4816 | -8/Garrison | Lost 3 parts (2n1w) 4880 | -8/Garrison | Garrison Relay disabled 4880 | -8/Garrison | Garrison Relay disabled 5049 | -8/Garrison | Triggered checkpoint 5073 | -8/Garrison | Build established: Mutant 5140 | -8/Garrison | Discovered new exit (range 12) 5175 | -8/Garrison | Triggered checkpoint 5245 | -8/Garrison | Triggered checkpoint 5567 | -8/Garrison | Build established: Scavenger-Mutant 5811 | -8/Garrison | Triggered checkpoint 5825 | -8/Garrison | Core integrity fell below 50% 5960 | -8/Garrison | Discovered new exit (range 9) 6349 | -8/Garrison | Triggered checkpoint 6638 | -8/Garrison | Learned Materials security intel 7033 | -8/Garrison | Triggered checkpoint 7251 | -8/Garrison | Installed Relay Interface Framework 7386 | -8/Garrison | Entered Materials 7735 | -8/Materials | Core integrity fell below 20% 7786 | -8/Materials | First assault squad dispatched 7918 | -8/Materials | Lost 5 parts (1p2n2w) 8293 | -8/Materials | Garrison activated, responded to threat 8364 | -8/Materials | Build established: Hacker-Mutant 8369 | -8/Materials | Discovered exit to Factory (range 16) 8394 | -8/Materials | Entered Factory 8394 | -7/Factory | Evolved 2 slots: Utility x2 8698 | -7/Factory | Lost 4 parts (1p3w) 8882 | -7/Factory | Lost 7 parts (1p3n1u2w) 9372 | -7/Factory | Build established: Skirmisher 9815 | -7/Factory | Repaired Lrg. Storage Unit 10140 | -7/Factory | Core integrity fell below 50% 10149 | -7/Factory | Core integrity fell below 20% 10338 | -7/Factory | Discovered new exit (range 8) 10350 | -7/Factory | Entered Lower Caves 10524 | -7/Lower Caves | Entered an active Warlord outpost 10532 | -7/Lower Caves | A Commander dispatched an escort 10539 | -7/Lower Caves | Learned location of Extension (-4) 10539 | -7/Lower Caves | Learned Research stockpile data 10539 | -7/Lower Caves | Learned Research garrison access intel 10642 | -7/Lower Caves | Build established: Mutant 10677 | -7/Lower Caves | Found Prototype Device 10749 | -7/Lower Caves | Ambushed by research squad 10753 | -7/Lower Caves | P-60 Hacker assimilated allied Q1-5IY(b) 10969 | -7/Lower Caves | Encountered a Warlord checkpoint 11165 | -7/Lower Caves | Discovered new exit (range 13) 11181 | -7/Lower Caves | Entered another Lower Caves area 11239 | -7/Lower Caves | Attracted the attention of an 0b10 outpost 11244 | -7/Lower Caves | Destroyed by L-41 Fighter with Axe Last Messages --------------- System corrupted: Energy discharge (-58). System corrupted: Matter fused (-5). EXIT=FOUND LOCATION=UNKNOWN GOAL=ESCAPE G-47 Trooper springs to life. L-41 Fighter springs to life. System corrupted: Plasma Cannon failed to cycle. L-41 Fighter destroyed. G-47 Trooper destroyed. Y-64 Sentinel: "DETECTED UNIDENTIFIED DERELICT." Overheating: System interference. Plasma Cannon temporarily disabled. Imp. Terrain Scanner temporarily disabled. Imp. Heat Sink fries itself beyond repair. Imp. Titanium Leg severed. Y-64 Sentinel: "REQUESTING BACKUP." Penetrated by Slug. Plasma Cannon destroyed. [Achievement: 10k Club] Map ----- +----------------------------------------------------+ | ??????????????????????#??????????????????????????? | | ?????????????????????????????????????????????????? | | ?????????????????????????#####???????????????????? | | ????????????????????????## ##??????????????????? | | ????????????????????????# ## #?????#????#???????? | | ?????????????????????????# #??????????????????? | | ???????????????????????#?## ###?????????????????? | | ???????????? ????????????## ##????????????????? | | ??????????? ??????????#?## #????????????????? | | ??????????? ####????????## ##?????? ?????????? | | ???????????? #????##### #?????????????????? | | ???????????? #?#??# ##????????????????? | | ??????????????? #???# ###?????????????????? | | ??????????????????# #### #????? ????#??????? | | ???????????????????# #???? ??????????? | | ????? ????????????### ###? ????????????? | | ????????????????????##### ### ##?? ?????????? | | ??????????#?????????????# #?????????????? | | ????????????????????????# #?????????????? | | ???????????????########## ## #?????????????? | | ???????????????# #?? #?? ??????????? | | ?????????????# ###/#### ##???# ????????????? | | ??????????????????? ??# ##??????????????????? | | ??????????????????? ?#gg #???????????????????? | | ??????????????????" ?#%l #???????????????????? | | ??????????????????" ##?#@= #????????? ?????????? | | ?????????????? ??#" /??#gY ##??#??????????????? | | ?????????????????#" #??*=## ##??????????????????? | | ?????????????????#####?? #?##???????????????????? | | ??????????????????????? #??????????????????????? | | ???????????????????????####???#???????? ?????????? | | ???????????? ? ??????????????????????????????????? | | ?????????????????????????????????????????????????? | | ??????????????????????????#??????????????????????? | | ??????????????????????????? ????? ???????????????? | | ?????????????????????????????????????????????????? | | ?????????????????????????????????????????????????? | | ???????????????????????#?????????????????????????? | | ?????????????????????????????????????????????????? | | ?????????????????????????????????????????????????? | | ?????????????????????????????????????????????????? | | ?????????????????????????????????????????????????? | | ?????????????????????????????????????????????????? | | ?????????????????????????????????????????????????? | | ?????????????????????????????????????????????????? | | ?????????????????????????????????????????????????? | | ?????????????????????????????????????????????????? | | ?????????????????????????????????????????????????? | | ?????????????????????????????????????????????????? | | ?????????????????????????????????????????????????? | +----------------------------------------------------+ Best States ------------- Heat Dissipation 34 Energy Generation 16 Energy Capacity 360 Matter Stores 300 Matter Capacity 300 Sight Range 20 Terrain Scan Range 16 Terrain Scan Density 10 ECM Strength 2 Resistance: KI 20 Resistance: TH 20 Resistance: EX 20 Resistance: EM 20 Resistance: I 20 Resistance: S 20 Resistance: P 20 Evasion (%) 55 Targeting Accuracy 8 Target Analysis 5 Recoil Reduction 4 Offensive Hacking 20 Relay Coupler Types 2 Relay Coupler Value 63 Item Schematics ----------------- Hover Unit | -8/Materials | Scanalyzed Mak. Spear | -7/Factory | Scanalyzed Robot Schematics ------------------ None Fabricated ------------ Nothing Repaired ---------- Lrg. Storage Unit | 19% | -7/Factory Studied --------- Aluminum Leg | -8/Materials | Hacked Arm. Treads | -7/Factory | Hacked Remote Datajack | -7/Factory | Hacked Alien Tech Used ----------------- None Achievements -------------- 10k Club Assimilation Complete Deductive Reasoning Join The Dark Side Mindtrick Significant Disruption Challenges ------------ None Game ------ Seed GuidedInterceptDerivative Manual? 0 Play Time 01:33:22 Cumulative 13.8 hours Start 2025.11.16 @ 18:51:56 End 2025.11.17 @ 01:08:06 Sessions 3 Manual Loads 0 Difficulty Adventurer Special Mode None Game No. 25 Rogue 1 Adventurer 24 Explorer 0 Win Type - Total 0 Types 0/0/0/0/0/0/0/0/0/0 Lore% 10 Gallery% 20 Achievement% 16 Wizard Run 0 Options --------- Layout 2 ASCII 0 Keyboard 0 Movement Mouse Keybinds 0 Fullscreen 1 Font 24/Smallcaps Map View 50x44 Zoom Use 0% Tactical HUD 0 Map Filters NONE Filters NONE Steam 1 RUN: 53a7e4bb-561e-4e68-8f42-cb74fc7a3fdb